Service area,Service sub division,TVBC Service,Expense type,Detailed expense type,TVBC account code,Date Paid,Transaction Reference, Nett Value ,Supplier Name
External Trading Accounts,Business Parks,Premises & Asset Management,Premises related Expenditure,Energy Costs,Electricity,04/08/2022,437175,-3511.39,Opus Energy Ltd
External Trading Accounts,Economic Development,Premises & Asset Management,Premises related Expenditure,Cleaning and domestic supplies,Contract Cleaning - Non Estates,18/08/2022,452981,-933.07,Red Support Services
External Trading Accounts,Economic Development,Premises & Asset Management,Third Party Payments,Other Establishments,Other Contractors,18/08/2022,452981,-1684.91,Red Support Services
External Trading Accounts,Business Parks,Premises & Asset Management,Premises related Expenditure,Energy Costs,Electricity,04/08/2022,437176,-553.14,Opus Energy Ltd
Planning & Development,Community Development,Community and Leisure ,Supplies & Services,Grants & Subscriptions,Grants,17/08/2022,453270,500,Romsey Male Voice Choir
Planning & Development,Economic Development,Planning Policy & Economic Development ,Supplies & Services,Services,Training Courses,04/08/2022,451216,500,R&B Industrial Ltd
Cultural & Related,Culture & Heritage,Community and Leisure ,Supplies & Services,Miscellaneous Expenses,Promotions / Special Events,04/08/2022,451176,500,Creative Workshops For Children Uk
External Trading Accounts,Business Parks,Premises & Asset Management,Premises related Expenditure,Energy Costs,Electricity,04/08/2022,436632,480,Opus Energy Ltd
Housing Services,Homelessness,Housing and Environmental Health ,Supplies & Services,Grants & Subscriptions,Grants,25/08/2022,454680,510.73,Abri
Cultural & Related,Culture & Heritage,Estates and Economic Development ,Third Party Payments,Private contractors,Main Contractor Costs,04/08/2022,449350,430,Intelligent Data Collection Ltd
Central Services to the Public,Management & Support Services,Finance,Supplies & Services,Miscellaneous Expenses,Vehicle insurance claims,11/08/2022,451639,525,Protector Insurance
Cultural & Related,Culture & Heritage,Community and Leisure ,Supplies & Services,Miscellaneous Expenses,Promotions / Special Events,25/08/2022,454277,442.75,Sbs Event Productions Ltd
Environmental & Regulatory,Street Cleansing (not chargeable to Highways),Environmental,Supplies & Services,Miscellaneous Expenses,Hazardous / Fly Tipped Waste,25/08/2022,451655,450,Breeze Environmental Limited
Central Services to the Public,Management & Support Services,Premises & Asset Management,Employees,Indirect Employee Expenses,Advertising Of Vacancies,03/08/2022,443205,450,Assemble Media Group Ltd
Housing Services,Homelessness,Housing and Environmental Health ,Supplies & Services,Miscellaneous Expenses,Bed & Breakfast,18/08/2022,453066,455,Personal Data - Data Protection Act 1998
Central Services to the Public,Elections,Legal & Democratic,Supplies & Services,"Printing, Stationery & General Office Expenses",Postage Costs,04/08/2022,451187,455.8,Financial Data Management Plc
Cultural & Related,Recreation & Sport,Premises & Asset Management,Premises related Expenditure,Energy Costs,Gas,11/08/2022,452722,458.92,Totalenergies Gas & Power Ltd
Central Services to the Public,Management & Support Services,Environmental,Supplies & Services,"Equipment, Furniture & Materials",Purchase Equip + Materials,18/08/2022,452399,460,Dorset Auto Spares Ltd
Environmental & Regulatory,Waste management,Environmental,Transport Related Expenditure,Direct Transport Costs,Repair Materials,04/08/2022,451255,464.43,Hyphose Ltd
Environmental & Regulatory,Waste management,Environmental,Transport Related Expenditure,Direct Transport Costs,Repair Materials,25/08/2022,453439,466.41,Dennis Eagle Ltd
Environmental & Regulatory,Waste management,Environmental,Employees,Indirect Employee Expenses,Agency Staff - Waged Posts,18/08/2022,443182,469.8,Simple Recruitment Services Ltd
Central Services to the Public,Management & Support Services,Environmental,Supplies & Services,Services,Training Courses,18/08/2022,452695,470,Vehicle Inspection And Training Services
Cultural & Related,Open Spaces,Environmental,Transport Related Expenditure,Direct Transport Costs,Petrol,04/08/2022,449243,472.57,Fuel Card Services Ltd
Housing Services,Homelessness,Housing and Environmental Health ,Supplies & Services,Miscellaneous Expenses,Bed & Breakfast,18/08/2022,453063,525,Personal Data - Data Protection Act 1998
Cultural & Related,Recreation & Sport,Community and Leisure ,Premises related Expenditure,Grounds Maintenance Costs,Gm - Additional Works,04/08/2022,436613,475,Technical Surfaces Ltd
Cultural & Related,Open Spaces,Environmental,Supplies & Services,Miscellaneous Expenses,Waste Collection,04/08/2022,443246,475.92,Veolia Es Hampshire Ltd
Cultural & Related,Open Spaces,Environmental,Transport Related Expenditure,Direct Transport Costs,Petrol,11/08/2022,451664,476,Fuel Card Services Ltd
Cultural & Related,Open Spaces,Environmental,Supplies & Services,Miscellaneous Expenses,Waste Collection,18/08/2022,451145,476.18,Collard Enviromental Ltd
Cultural & Related,Open Spaces,Environmental,Supplies & Services,Miscellaneous Expenses,Waste Collection,25/08/2022,437241,476.18,Collard Enviromental Ltd
Central Services to the Public,Management & Support Services,Premises & Asset Management,Third Party Payments,Other Establishments,Private Contractors,04/08/2022,437286,477.04,Corrigenda Ltd
External Trading Accounts,Business Parks,Premises & Asset Management,Premises related Expenditure,Energy Costs,Electricity,04/08/2022,436628,553.14,Opus Energy Ltd
Cultural & Related,Open Spaces,Environmental,Supplies & Services,Miscellaneous Expenses,Waste Collection,25/08/2022,454286,487.68,Collard Enviromental Ltd
Central Services to the Public,Management & Support Services,Premises & Asset Management,Supplies & Services,"Equipment, Furniture & Materials",Equipment Hire,25/08/2022,453676,494.47,Woosh Washrooms
Central Services to the Public,Management & Support Services,Legal & Democratic,Employees,Indirect Employee Expenses,Agency Staff - Waged Posts,11/08/2022,451390,495,Sellick Partnership Ltd
External Trading Accounts,Property Investments,Premises & Asset Management,Premises related Expenditure,Grounds Maintenance Costs,Grounds Maintenance Contracts,25/08/2022,454476,496.84,Landmarks Sustainability Ltd
Central Services to the Public,Management & Support Services,Premises & Asset Management,Employees,Indirect Employee Expenses,Agency Staff - Waged Posts,04/08/2022,451171,497,Active Staff Ltd
Cultural & Related,Culture & Heritage,Community and Leisure ,Third Party Payments,Private contractors,Main Contractor Costs,04/08/2022,451205,500,Julian Stocks Ltd
Environmental & Regulatory,Street Cleansing (not chargeable to Highways),Environmental,Supplies & Services,Miscellaneous Expenses,Hazardous / Fly Tipped Waste,25/08/2022,451658,505,Breeze Environmental Limited
Cultural & Related,Open Spaces,Environmental,Transport Related Expenditure,Direct Transport Costs,Repair Materials,04/08/2022,449577,505.79,Hunt Forest Group Ltd
Environmental & Regulatory,Street Cleansing (not chargeable to Highways),Environmental,Transport Related Expenditure,Direct Transport Costs,Repair Materials,18/08/2022,452404,511.15,Adams Morey Ltd
Central Services to the Public,Management & Support Services,Premises & Asset Management,Employees,Indirect Employee Expenses,Agency Staff - Waged Posts,25/08/2022,453462,514.75,Active Staff Ltd
Housing Services,Homelessness,Housing and Environmental Health ,Supplies & Services,Grants & Subscriptions,Grants,25/08/2022,454681,628.85,Mountwood Apartments Ltd
Housing Services,Homelessness,Housing and Environmental Health ,Supplies & Services,Miscellaneous Expenses,Bed & Breakfast,18/08/2022,453040,525,Personal Data - Data Protection Act 1998
External Trading Accounts,Business Parks,Premises & Asset Management,Premises related Expenditure,Repairs Alterations & Maintenance of Buildings,General Repairs,04/08/2022,451424,527.48,Andover Glass Works Ltd
Cultural & Related,Culture & Heritage,Community and Leisure ,Supplies & Services,"Equipment, Furniture & Materials",Equipment Hire,04/08/2022,451256,535,Avenue Audio Ltd
Housing Services,Homelessness,Housing and Environmental Health ,Supplies & Services,Grants & Subscriptions,Grants,25/08/2022,454679,642.76,Vivid Housing Ltd
Central Services to the Public,Management & Support Services,Premises & Asset Management,Third Party Payments,Other Establishments,Private Contractors,18/08/2022,452720,643.75,Personal Data - Data Protection Act 1998
External Trading Accounts,Economic Development,Premises & Asset Management,Premises related Expenditure,Grounds Maintenance Costs,Gm - Additional Works,04/08/2022,451225,543.06,D Stewart & Son Ltd
Environmental & Regulatory,Street Cleansing (not chargeable to Highways),Environmental,Supplies & Services,Miscellaneous Expenses,Hazardous / Fly Tipped Waste,25/08/2022,451656,545,Breeze Environmental Limited
Central Services to the Public,Management & Support Services,Chief Executive's,Employees,Indirect Employee Expenses,Advertising Of Vacancies,04/08/2022,451182,546.25,Guardian News & Media Ltd
Planning & Development,Planning Policy,Plan Pol & Transport,Employees,Indirect Employee Expenses,Advertising Of Vacancies,04/08/2022,451180,546.25,Guardian News & Media Ltd
External Trading Accounts,Business Parks,Premises & Asset Management,Premises related Expenditure,Energy Costs,Electricity,04/08/2022,436630,632.4,Opus Energy Ltd
Central Services to the Public,Elections,Legal & Democratic,Supplies & Services,"Printing, Stationery & General Office Expenses",Postage Costs,18/08/2022,452408,51.68,Royal Mail Group Ltd
Planning & Development,Economic Development,Planning Policy & Economic Development ,Supplies & Services,Grants & Subscriptions,Grants,04/08/2022,451212,554.17,Business South Group Limited
Cultural & Related,Recreation & Sport,Premises & Asset Management,Premises related Expenditure,Energy Costs,Gas,18/08/2022,452755,559.42,Totalenergies Gas & Power Ltd
External Trading Accounts,Economic Development,Premises & Asset Management,Premises related Expenditure,Energy Costs,Electricity,11/08/2022,451914,562.33,Opus Energy Ltd
Environmental & Regulatory,Waste management,Environmental,Transport Related Expenditure,Direct Transport Costs,External Garages,04/08/2022,449685,574,Dennis Eagle Ltd
Central Services,Corporate & Democratic Core,Corporate & Democratic,Supplies & Services,"Printing, Stationery & General Office Expenses",External Printing,11/08/2022,452363,575,Tall Security Print Ltd
Environmental & Regulatory,Waste management,Environmental,Employees,Indirect Employee Expenses,Agency Staff - Waged Posts,04/08/2022,451226,579.42,Simple Recruitment Services Ltd
Cultural & Related,Open Spaces,Environmental,Supplies & Services,Miscellaneous Expenses,Waste Collection,04/08/2022,449380,586.72,Veolia Es Hampshire Ltd
Cultural & Related,Culture & Heritage,Community and Leisure ,Supplies & Services,"Equipment, Furniture & Materials",Purchase Equip + Materials,10/08/2022,451259,587.21,On Stage Solution Ltd
Cultural & Related,Recreation & Sport,Community and Leisure ,Premises related Expenditure,Repairs Alterations & Maintenance of Buildings,Planned Maintenance - Non Est,18/08/2022,436644,594,Culligan (Uk) Ltd
Environmental & Regulatory,Waste management,Environmental,Employees,Indirect Employee Expenses,Agency Staff - Waged Posts,18/08/2022,452386,595.08,Simple Recruitment Services Ltd
Cultural & Related,Recreation & Sport,Community and Leisure ,Supplies & Services,Services,Removal Fees,18/08/2022,452761,600,Test Valley Removals
Central Services to the Public,Local Tax Collection,Revenues,Supplies & Services,Services,Professional Fees,17/08/2022,451269,600,Airey Consultancy Services Ltd
Environmental & Regulatory,Waste management,Environmental,Employees,Indirect Employee Expenses,Agency Staff - Waged Posts,18/08/2022,449878,602.91,Simple Recruitment Services Ltd
Cultural & Related,Recreation & Sport,Premises & Asset Management,Premises related Expenditure,Energy Costs,Gas,11/08/2022,452733,612.83,Totalenergies Gas & Power Ltd
Cultural & Related,Culture & Heritage,Community and Leisure ,Premises related Expenditure,Repairs Alterations & Maintenance of Buildings,Planned Maintenance - Non Est,25/08/2022,451910,618.75,Pattco
Planning & Development,Economic Development,Planning Policy & Economic Development ,Supplies & Services,Grants & Subscriptions,Grants,03/08/2022,451387,750,Ignite Property Group Ltd
Planning & Development,Development Control,Planning & Building,Supplies & Services,Services,Legal Fees,11/08/2022,452418,625,Cornerstone Barristers
Planning & Development,Economic Development,Planning Policy & Economic Development ,Supplies & Services,Grants & Subscriptions,Grants,25/08/2022,454621,750,Holistic Hideout
Cultural & Related,Culture & Heritage,Premises & Asset Management,Supplies & Services,Miscellaneous Expenses,Waste Collection,18/08/2022,452972,178.87,Suez Recycling And Recovery Uk Ltd
Central Services to the Public,Management & Support Services,Premises & Asset Management,Supplies & Services,Miscellaneous Expenses,Waste Collection,18/08/2022,452972,450.88,Suez Recycling And Recovery Uk Ltd
Cultural & Related,Open Spaces,Community and Leisure ,Premises related Expenditure,Grounds Maintenance Costs,Gm - Additional Works,04/08/2022,437213,638.46,Rocon Contractors Ltd
Cultural & Related,Culture & Heritage,Premises & Asset Management,Supplies & Services,Miscellaneous Expenses,Waste Collection,04/08/2022,451627,192.52,Suez Recycling And Recovery Uk Ltd
Central Services to the Public,Management & Support Services,Premises & Asset Management,Supplies & Services,Miscellaneous Expenses,Waste Collection,04/08/2022,451627,450.88,Suez Recycling And Recovery Uk Ltd
Central Services to the Public,Management & Support Services,Legal & Democratic,Employees,Indirect Employee Expenses,Agency Staff - Waged Posts,11/08/2022,451386,645,Sellick Partnership Ltd
Environmental & Regulatory,Waste & Recycling Management,Environmental,Transport Related Expenditure,Direct Transport Costs,Tyres,11/08/2022,451926,37.57,Tructyre Ats
Environmental & Regulatory,Waste management,Environmental,Transport Related Expenditure,Direct Transport Costs,Tyres,11/08/2022,451926,607.96,Tructyre Ats
Central Services to the Public,Management & Support Services,Community and Leisure ,Supplies & Services,Miscellaneous Expenses,National Assist Act Burials,17/08/2022,451194,780,Dunnings Funeral Services
Cultural & Related,Culture & Heritage,Community and Leisure ,Supplies & Services,"Printing, Stationery & General Office Expenses",Licences / Affiliation Fees,04/08/2022,449891,653.68,Ppl Prs Ltd
External Trading Accounts,Business Parks,Premises & Asset Management,Premises related Expenditure,Energy Costs,Electricity,04/08/2022,451244,760.87,Opus Energy Ltd
Cultural & Related,Culture & Heritage,Community and Leisure ,Supplies & Services,Miscellaneous Expenses,Promotions / Special Events,25/08/2022,453677,800,Commotion Dance
Environmental & Regulatory,Waste management,Environmental,Employees,Indirect Employee Expenses,Agency Staff - Waged Posts,25/08/2022,453461,668.22,24-7 Staffing
Cultural & Related,Open Spaces,Environmental,Supplies & Services,Communications & Computing,Mobile Telephone Charges,25/08/2022,454321,210.33,Vodafone Limited
Environmental & Regulatory,Waste & Recycling Management,Environmental,Supplies & Services,Communications & Computing,Mobile Telephone Charges,25/08/2022,454321,63,Vodafone Limited
Environmental & Regulatory,Street Cleansing (not chargeable to Highways),Environmental,Supplies & Services,Communications & Computing,Mobile Telephone Charges,25/08/2022,454321,143.83,Vodafone Limited
Environmental & Regulatory,Waste management,Environmental,Supplies & Services,Communications & Computing,Mobile Telephone Charges,25/08/2022,454321,171.83,Vodafone Limited
Central Services to the Public,Management & Support Services,Environmental,Supplies & Services,Communications & Computing,Mobile Telephone Charges,25/08/2022,454321,49.33,Vodafone Limited
Central Services to the Public,Management & Support Services,Environmental,Supplies & Services,Communications & Computing,Mobile Telephone Charges,25/08/2022,454321,31.5,Vodafone Limited
Environmental & Regulatory,Waste management,Environmental,Employees,Indirect Employee Expenses,Agency Staff - Waged Posts,11/08/2022,451668,690.75,24-7 Staffing
Environmental & Regulatory,Waste management,Environmental,Transport Related Expenditure,Direct Transport Costs,Repair Materials,11/08/2022,451441,691.48,Wasteparts Uk Ltd
Environmental & Regulatory,Waste management,Environmental,Transport Related Expenditure,Direct Transport Costs,Repair Materials,11/08/2022,432506,693.54,Dennis Eagle Ltd
Environmental & Regulatory,Waste management,Environmental,Transport Related Expenditure,Direct Transport Costs,Repair Materials,11/08/2022,451166,693.54,Dennis Eagle Ltd
Central Services to the Public,Local Tax Collection,Revenues,Supplies & Services,"Printing, Stationery & General Office Expenses",Stationery,11/08/2022,451660,704,Hound Envelopes Limited
Cultural & Related,Open Spaces,Environmental,Supplies & Services,Miscellaneous Expenses,Waste Collection,04/08/2022,439706,704,Ace Liftaway
Cultural & Related,Culture & Heritage,Community and Leisure ,Supplies & Services,Miscellaneous Expenses,Promotions / Special Events,18/08/2022,453670,847.2,Winchester Science Centre
Environmental & Regulatory,Waste & Recycling Management,Environmental,Employees,Indirect Employee Expenses,Agency Staff - Waged Posts,04/08/2022,449896,714,Golden Orb Solutions
Planning & Development,Building Control,Planning & Building,Employees,Indirect Employee Expenses,Agency Staff - Waged Posts,04/08/2022,448308,719.16,Hays Specialist Recruitment
Planning & Development,Building Control,Planning & Building,Employees,Indirect Employee Expenses,Agency Staff - Waged Posts,18/08/2022,452985,719.16,Hays Specialist Recruitment
Planning & Development,Development Control,Planning & Building,Supplies & Services,Services,Legal Fees,04/08/2022,443207,750,Sharpe Pritchard Llp
Central Services,Corporate & Democratic Core,Corporate & Democratic,Supplies & Services,Services,Professional Advice,11/08/2022,437231,750,Dc Commercial Solicitors
Cultural & Related,Recreation & Sport,Premises & Asset Management,Premises related Expenditure,Energy Costs,Gas,18/08/2022,452756,755.03,Totalenergies Gas & Power Ltd
Central Services to the Public,Management & Support Services,IT,Supplies & Services,Communications & Computing,Communication Links,25/08/2022,451172,765.94,Nominet
Central Services to the Public,Management & Support Services,Premises & Asset Management,Supplies & Services,Communications & Computing,Telephone Tracking System,11/08/2022,451250,48,Teletrac Navman (Uk) Ltd
Environmental & Regulatory,Regulatory Services,Housing and Environmental Health ,Supplies & Services,Communications & Computing,Telephone Tracking System,11/08/2022,451250,6,Teletrac Navman (Uk) Ltd
Environmental & Regulatory,Regulatory Services,Housing and Environmental Health ,Supplies & Services,Communications & Computing,Telephone Tracking System,11/08/2022,451250,12,Teletrac Navman (Uk) Ltd
Cultural & Related,Open Spaces,Community and Leisure ,Supplies & Services,Communications & Computing,Telephone Tracking System,11/08/2022,451250,6,Teletrac Navman (Uk) Ltd
Cultural & Related,Open Spaces,Community and Leisure ,Supplies & Services,Communications & Computing,Telephone Tracking System,11/08/2022,451250,6,Teletrac Navman (Uk) Ltd
"Highways, Roads & Transport",Parking Services,Plan Pol & Transport,Supplies & Services,Communications & Computing,Telephone Tracking System,11/08/2022,451250,12,Teletrac Navman (Uk) Ltd
Cultural & Related,Open Spaces,Environmental,Supplies & Services,Communications & Computing,Telephone Tracking System,11/08/2022,451250,299.99,Teletrac Navman (Uk) Ltd
Environmental & Regulatory,Waste & Recycling Management,Environmental,Supplies & Services,Communications & Computing,Telephone Tracking System,11/08/2022,451250,36,Teletrac Navman (Uk) Ltd
Environmental & Regulatory,Street Cleansing (not chargeable to Highways),Environmental,Supplies & Services,Communications & Computing,Telephone Tracking System,11/08/2022,451250,174.7,Teletrac Navman (Uk) Ltd
Environmental & Regulatory,Waste management,Environmental,Supplies & Services,Communications & Computing,Telephone Tracking System,11/08/2022,451250,136.6,Teletrac Navman (Uk) Ltd
Environmental & Regulatory,Waste management,Environmental,Supplies & Services,Communications & Computing,Telephone Tracking System,11/08/2022,451250,12,Teletrac Navman (Uk) Ltd
Central Services to the Public,Management & Support Services,Environmental,Supplies & Services,Communications & Computing,Telephone Tracking System,11/08/2022,451250,18,Teletrac Navman (Uk) Ltd
Central Services to the Public,Management & Support Services,Finance,Supplies & Services,"Printing, Stationery & General Office Expenses",Postage Costs,25/08/2022,453331,767.91,Whistl Uk Ltd
Cultural & Related,Open Spaces,Environmental,Transport Related Expenditure,Direct Transport Costs,External Garages,11/08/2022,451410,207,Hi-Bar Cleaners Ltd
Cultural & Related,Open Spaces,Environmental,Transport Related Expenditure,Direct Transport Costs,Repair Materials,11/08/2022,451410,566.9,Hi-Bar Cleaners Ltd
Planning & Development,Building Control,Planning & Building,Employees,Indirect Employee Expenses,Agency Staff - Waged Posts,04/08/2022,451164,779.09,Hays Specialist Recruitment
Planning & Development,Building Control,Planning & Building,Employees,Indirect Employee Expenses,Agency Staff - Waged Posts,25/08/2022,453663,779.09,Hays Specialist Recruitment
Environmental & Regulatory,Waste management,Environmental,Employees,Indirect Employee Expenses,Agency Staff - Waged Posts,04/08/2022,451135,781.26,24-7 Staffing
Cultural & Related,Open Spaces,Environmental,Supplies & Services,Miscellaneous Expenses,Waste Collection,25/08/2022,453346,796.58,Veolia Es Hampshire Ltd
Planning & Development,Development Control,Planning & Building,Supplies & Services,"Printing, Stationery & General Office Expenses",Stationery,18/08/2022,451240,661.57,Lyreco Uk Ltd
Planning & Development,Development Control,Planning & Building,Supplies & Services,Miscellaneous Expenses,Advertising,18/08/2022,451240,136.53,Lyreco Uk Ltd
Central Services to the Public,Management & Support Services,Premises & Asset Management,Supplies & Services,Services,Project Consultancy - Policy,04/08/2022,451183,800,Harewood Independent Surveyors Ltd
Environmental & Regulatory,Waste management,Environmental,Supplies & Services,"Equipment, Furniture & Materials",Purchase Equip + Materials,18/08/2022,453022,808.1,Frontier Plastics Limited
Planning & Development,Community Development,Community and Leisure ,Supplies & Services,Grants & Subscriptions,Grants,04/08/2022,451413,1000,Ace Andover Clothing Exchange
Central Services,Corporate & Democratic Core,Corporate & Democratic,Supplies & Services,Grants & Subscriptions,Subscriptions,11/08/2022,451646,1000,Hampshire County Council
Cultural & Related,Culture & Heritage,Community and Leisure ,Supplies & Services,Miscellaneous Expenses,Promotions / Special Events,25/08/2022,454322,1000,The Artroom
Planning & Development,Economic Development,Premises & Asset Management,Supplies & Services,Grants & Subscriptions,Grants,04/08/2022,451215,1000,Romsey Town Council
Planning & Development,Community Development,Community and Leisure ,Supplies & Services,Grants & Subscriptions,Grants,04/08/2022,451931,1000,Valley Park Parish Council
Central Services to the Public,Management & Support Services,Premises & Asset Management,Third Party Payments,Other Establishments,Contract Catering,25/08/2022,454281,839.2,Edwards And Ward Ltd
Central Services to the Public,Management & Support Services,Legal & Democratic,Employees,Indirect Employee Expenses,Agency Staff - Waged Posts,04/08/2022,443241,855,Sellick Partnership Ltd
Planning & Development,Building Control,Planning & Building,Employees,Indirect Employee Expenses,Agency Staff - Waged Posts,18/08/2022,432509,859.66,Hays Specialist Recruitment
Central Services to the Public,Management & Support Services,IT,Supplies & Services,Communications & Computing,Land Line Telephone Charges,18/08/2022,452613,860.11,Gamma
Central Services to the Public,Management & Support Services,Premises & Asset Management,Supplies & Services,Services,Training Courses,25/08/2022,454466,862.5,Solace Enterprises Ltd
Central Services to the Public,Management & Support Services,Premises & Asset Management,Supplies & Services,"Equipment, Furniture & Materials",Equipment Hire,11/08/2022,451407,862.5,Crown Water & Coffee
Central Services to the Public,Management & Support Services,Premises & Asset Management,Third Party Payments,Other Establishments,Private Contractors,04/08/2022,451428,873,Waterside Blinds
Cultural & Related,Open Spaces,Environmental,Supplies & Services,Miscellaneous Expenses,Waste Collection,11/08/2022,451394,876.95,Veolia Es Hampshire Ltd
External Trading Accounts,Business Parks,Premises & Asset Management,Premises related Expenditure,Cleaning and domestic supplies,Contract Cleaning - Non Estates,25/08/2022,454488,885,Hi-Spec Facilities Services Plc
External Trading Accounts,Business Parks,Premises & Asset Management,Supplies & Services,Miscellaneous Expenses,Waste Collection,11/08/2022,451431,892.38,Basingstoke Skip Hire & Sthrn Waste Mgt Ltd
Central Services to the Public,Management & Support Services,Legal & Democratic,Employees,Indirect Employee Expenses,Agency Staff - Waged Posts,04/08/2022,436584,900,Sellick Partnership Ltd
Environmental & Regulatory,Waste management,Environmental,Transport Related Expenditure,Direct Transport Costs,Repair Materials,25/08/2022,453451,900.13,Ppk Services Ltd
Central Services to the Public,Management & Support Services,Environmental,Supplies & Services,"Equipment, Furniture & Materials",Maintenance Equip + Materials,11/08/2022,451396,905,Mb Garage Services Ltd
Central Services to the Public,Management & Support Services,Environmental,Transport Related Expenditure,Direct Transport Costs,Repair Materials,18/08/2022,452984,907.04,Dennis Eagle Ltd
Central Services to the Public,Management & Support Services,Premises & Asset Management,Third Party Payments,Other Establishments,Private Contractors,11/08/2022,451436,1090,Personal Data - Data Protection Act 1998
Environmental & Regulatory,Waste management,Environmental,Employees,Indirect Employee Expenses,Agency Staff - Waged Posts,04/08/2022,451168,928.8,Employment Partners Group
Environmental & Regulatory,Waste management,Environmental,Transport Related Expenditure,Direct Transport Costs,Repair Materials,18/08/2022,453027,346.56,Wasteparts Uk Ltd
Central Services to the Public,Management & Support Services,Environmental,Transport Related Expenditure,Direct Transport Costs,Repair Materials,18/08/2022,453027,587.2,Wasteparts Uk Ltd
Central Services to the Public,Management & Support Services,Premises & Asset Management,Premises related Expenditure,Energy Costs,Gas,18/08/2022,452740,941.05,Totalenergies Gas & Power Ltd
Central Services to the Public,Elections,Legal & Democratic,Supplies & Services,"Printing, Stationery & General Office Expenses",External Printing,25/08/2022,453441,945,Financial Data Management Plc
Central Services to the Public,Management & Support Services,Finance,Supplies & Services,"Printing, Stationery & General Office Expenses",Postage Costs,11/08/2022,449257,952.47,Whistl Uk Ltd
Cultural & Related,Culture & Heritage,Community and Leisure ,Third Party Payments,Private contractors,Main Contractor Costs,18/08/2022,451920,90,Zen Internet Limited
Central Services to the Public,Management & Support Services,IT,Supplies & Services,Communications & Computing,Communication Links,18/08/2022,451920,767.6,Zen Internet Limited
"Highways, Roads & Transport",Parking Services,Plan Pol & Transport,Supplies & Services,Communications & Computing,Communication Links,18/08/2022,451920,41.98,Zen Internet Limited
"Highways, Roads & Transport",Parking Services,Plan Pol & Transport,Supplies & Services,Communications & Computing,Land Line Telephone Charges,18/08/2022,451920,55.96,Zen Internet Limited
Cultural & Related,Recreation & Sport,Premises & Asset Management,Premises related Expenditure,Energy Costs,Gas,11/08/2022,452734,959.99,Totalenergies Gas & Power Ltd
Environmental & Regulatory,Waste management,Environmental,Employees,Indirect Employee Expenses,Agency Staff - Waged Posts,04/08/2022,451169,592.11,Employment Partners Group
Environmental & Regulatory,Waste management,Environmental,Employees,Indirect Employee Expenses,Agency Staff - Waged Posts,04/08/2022,451169,371.52,Employment Partners Group
Cultural & Related,Open Spaces,Community and Leisure ,Premises related Expenditure,Grounds Maintenance Costs,Gm - Additional Works,18/08/2022,451626,970,Aquam Water Services
Environmental & Regulatory,Street Cleansing (not chargeable to Highways),Environmental,Premises related Expenditure,Water Services,Water And Sewerage Charges,18/08/2022,452412,970,Aquam Water Services
Cultural & Related,Open Spaces,Environmental,Supplies & Services,"Equipment, Furniture & Materials",Purchase Equip + Materials,25/08/2022,449256,971.5,Tudor Environmental
Central Services to the Public,Management & Support Services,Premises & Asset Management,Third Party Payments,Other Establishments,Private Contractors,18/08/2022,452719,1170,Personal Data - Data Protection Act 1998
Central Services to the Public,Management & Support Services,Finance,Supplies & Services,"Printing, Stationery & General Office Expenses",Postage Costs,18/08/2022,452708,982.01,Whistl Uk Ltd
Cultural & Related,Culture & Heritage,Community and Leisure ,Supplies & Services,"Printing, Stationery & General Office Expenses",Licences / Affiliation Fees,04/08/2022,449765,987.77,Ppl Prs Ltd
Central Services to the Public,Local Tax Collection,Revenues,Supplies & Services,"Printing, Stationery & General Office Expenses",Conference Costs,18/08/2022,453339,99,Irrv Hq
Central Services to the Public,Local Tax Collection,Revenues,Supplies & Services,"Printing, Stationery & General Office Expenses",Conference Costs,18/08/2022,453339,396,Irrv Hq
Housing Services,Housing Benefits ,Revenues,Supplies & Services,"Printing, Stationery & General Office Expenses",Conference Costs,18/08/2022,453339,247.5,Irrv Hq
Central Services to the Public,Local Tax Collection,Revenues,Supplies & Services,"Printing, Stationery & General Office Expenses",Conference Costs,18/08/2022,453339,247.5,Irrv Hq
Central Services to the Public,Management & Support Services,Legal & Democratic,Employees,Indirect Employee Expenses,Agency Staff - Waged Posts,04/08/2022,437192,1005,Sellick Partnership Ltd
Central Services to the Public,Management & Support Services,Environmental,Transport Related Expenditure,Direct Transport Costs,Repair Materials,18/08/2022,452406,1005.42,Wessex Truck And Trailer Supplies Limited
Central Services to the Public,Management & Support Services,Estates and Economic Development ,Third Party Payments,Private contractors,Main Contractor Costs,11/08/2022,451427,1013.66,Options Flooring Ltd
Environmental & Regulatory,Waste & Recycling Management,Environmental,Employees,Indirect Employee Expenses,Agency Staff - Waged Posts,11/08/2022,451921,1017.5,Golden Orb Solutions
Central Services,Corporate & Democratic Core,Corporate & Democratic,Supplies & Services,Grants & Subscriptions,Subscriptions,18/08/2022,453337,1020,Web Feet
Central Services to the Public,Management & Support Services,IT,Supplies & Services,Services,Training Courses,25/08/2022,451383,1050,Grey Matter Ltd
Cultural & Related,Open Spaces,Environmental,Supplies & Services,"Equipment, Furniture & Materials",Purchase Equip + Materials,18/08/2022,436595,1070.05,Tudor Environmental
"Highways, Roads & Transport",Parking Services,Plan Pol & Transport,Supplies & Services,"Equipment, Furniture & Materials",Purchase Equip + Materials,25/08/2022,454331,1100,Ina Parc Ltd
Environmental & Regulatory,Community Development,Community and Leisure ,Supplies & Services,Grants & Subscriptions,Grants,18/08/2022,453320,1320,Rcs Ltd
Central Services to the Public,Management & Support Services,Premises & Asset Management,Premises related Expenditure,Energy Costs,Gas,11/08/2022,452721,1128.84,Totalenergies Gas & Power Ltd
Central Services to the Public,Management & Support Services,Environmental,Supplies & Services,"Equipment, Furniture & Materials",Maintenance Equip + Materials,11/08/2022,451381,1130,Tokheim Solutions Uk Ltd
"Highways, Roads & Transport",Parking Services,Plan Pol & Transport,Supplies & Services,Services,Professional Fees,11/08/2022,451254,1156.6,Advam (Uk) Limited
Environmental & Regulatory,Regulatory Services,Housing and Environmental Health ,Supplies & Services,Grants and subscriptions,Capital Grants,04/08/2022,451420,1420,Liftech Systems (Se) Ltd
Environmental & Regulatory,Regulatory Services,Legal & Democratic,Employees,Indirect Employee Expenses,Agency Staff - Waged Posts,11/08/2022,451158,1184,The Oyster Partnership Ltd
Environmental & Regulatory,Regulatory Services,Legal & Democratic,Employees,Indirect Employee Expenses,Agency Staff - Waged Posts,18/08/2022,452997,1184,The Oyster Partnership Ltd
Cultural & Related,Culture & Heritage,Community and Leisure ,Supplies & Services,Miscellaneous Expenses,Booking Of Acts,04/08/2022,448289,1450,Personal Data - Data Protection Act 1998
Cultural & Related,Open Spaces,Environmental,Supplies & Services,Services,Training Courses,11/08/2022,451652,264.16,2start Limited
Environmental & Regulatory,Street Cleansing (not chargeable to Highways),Environmental,Supplies & Services,Services,Training Courses,11/08/2022,451652,264.17,2start Limited
Environmental & Regulatory,Waste management,Environmental,Supplies & Services,Services,Training Courses,11/08/2022,451652,726.46,2start Limited
Central Services to the Public,Local Tax Collection,Revenues,Supplies & Services,Services,Professional Fees,04/08/2022,451191,25.73,Ross & Roberts
Environmental & Regulatory,Waste management,Environmental,Transport Related Expenditure,Direct Transport Costs,Repair Materials,11/08/2022,451630,1235.4,Wasteparts Uk Ltd
Cultural & Related,Recreation & Sport,Community and Leisure ,Premises related Expenditure,Grounds Maintenance Costs,Gm - Additional Works,04/08/2022,451177,1250,Jdp Contracts Ltd
Planning & Development,Building Control,Planning & Building,Employees,Indirect Employee Expenses,Agency Staff - Waged Posts,11/08/2022,451925,1258.53,Hays Specialist Recruitment
External Trading Accounts,Business Parks,Premises & Asset Management,Premises related Expenditure,Energy Costs,Electricity,04/08/2022,436627,1442.4,Opus Energy Ltd
Central Services to the Public,Management & Support Services,Finance,Supplies & Services,"Printing, Stationery & General Office Expenses",Postage Costs,11/08/2022,451252,1280.83,Whistl Uk Ltd
Planning & Development,Development Control,Planning & Building,Supplies & Services,Miscellaneous Expenses,Health And Safety,11/08/2022,449874,1288.75,Posturite Limited
Housing Services,Homelessness,Housing and Environmental Health ,Supplies & Services,Miscellaneous Expenses,Bed & Breakfast,18/08/2022,451224,1320,Centennial Property Ltd
Planning & Development,Building Control,Planning & Building,Employees,Indirect Employee Expenses,Agency Staff - Waged Posts,25/08/2022,453024,1340.93,Hays Specialist Recruitment
Central Services to the Public,Management & Support Services,Estates and Economic Development ,Third Party Payments,Private contractors,Main Contractor Costs,04/08/2022,449898,1341.41,Axis Fire And Security Services Ltd
Central Services to the Public,Management & Support Services,IT,Supplies & Services,"Equipment, Furniture & Materials",Purchase Furniture,25/08/2022,451645,1359.6,Office Update Ltd
Planning & Development,Planning Policy,Plan Pol & Transport,Supplies & Services,Grants & Subscriptions,Grants,04/08/2022,383712,1678.69,Hampshire County Council
Planning & Development,Planning Policy,Plan Pol & Transport,Supplies & Services,Grants & Subscriptions,Grants,04/08/2022,422457,1678.69,Hampshire County Council
Planning & Development,Planning Policy,Plan Pol & Transport,Supplies & Services,Grants & Subscriptions,Grants,04/08/2022,427615,1678.69,Hampshire County Council
Planning & Development,Planning Policy,Plan Pol & Transport,Supplies & Services,Grants & Subscriptions,Grants,04/08/2022,449253,1678.69,Hampshire County Council
Planning & Development,Planning Policy,Plan Pol & Transport,Supplies & Services,Grants & Subscriptions,Grants,25/08/2022,452992,1678.69,Hampshire County Council
Housing Services,Homelessness,Housing and Environmental Health ,Supplies & Services,Grants & Subscriptions,Grants,25/08/2022,454677,1683,Belvoir
"Highways, Roads & Transport",Parking Services,Plan Pol & Transport,Employees,Indirect Employee Expenses,Advertising Of Vacancies,25/08/2022,452397,1422,Newsquest Media Group Ltd
External Trading Accounts,Business Parks,Premises & Asset Management,Premises related Expenditure,Energy Costs,Electricity,18/08/2022,452706,1422.79,Smartestenergy Business Limited
"Highways, Roads & Transport",Parking Services,Plan Pol & Transport,Employees,Indirect Employee Expenses,Advertising Of Vacancies,18/08/2022,437217,1448.76,Newsquest Media Group Ltd
Housing Services,Homelessness,Housing and Environmental Health ,Supplies & Services,Grants & Subscriptions,Grants,11/08/2022,452691,1766.15,Wbic Estates Ltd
Cultural & Related,Culture & Heritage,Community and Leisure ,Supplies & Services,Miscellaneous Expenses,Booking Of Acts,25/08/2022,454469,1790.62,Chambers Management
Central Services to the Public,Management & Support Services,IT,Supplies & Services,"Equipment, Furniture & Materials",IT Supp and Serv AMP,04/08/2022,451155,1550,Optm
Environmental & Regulatory,Waste management,Environmental,Transport Related Expenditure,Direct Transport Costs,Tyres,18/08/2022,452712,758.86,Tructyre Ats
Central Services to the Public,Management & Support Services,Environmental,Transport Related Expenditure,Direct Transport Costs,Repair Materials,18/08/2022,452712,794,Tructyre Ats
Environmental & Regulatory,Community Development,Community and Leisure ,Supplies & Services,Grants & Subscriptions,Grants,18/08/2022,453315,1900,Chapel Arts Studio
Environmental & Regulatory,Regulatory Services,Housing and Environmental Health ,Supplies & Services,Miscellaneous Expenses,Kennel fees,04/08/2022,443237,1626.6,Three Oak Boarding Kennels
"Highways, Roads & Transport",Public Transport,Plan Pol & Transport,Third Party Payments,Transport Operators in Respect of Concessionary Fares,Voluntary Orgs Reimbursement,18/08/2022,443242,1977,Andover Neighbourcare
Housing Services,Homelessness,Housing and Environmental Health ,Supplies & Services,Grants & Subscriptions,Grants,18/08/2022,453645,2000,Taylor Hill And Bond
"Highways, Roads & Transport",Parking Services,Plan Pol & Transport,Supplies & Services,Services,Legal Fees,04/08/2022,451404,2000,Hmcs
Cultural & Related,Open Spaces,Community and Leisure ,Supplies & Services,"Equipment, Furniture & Materials",Purchase Equip + Materials,18/08/2022,451207,2000,Personal Data - Data Protection Act 1998
Central Services to the Public,Management & Support Services,Premises & Asset Management,Third Party Payments,Other Establishments,Private Contractors,04/08/2022,451139,1675,Purbeck Civil Engineering Limited
Planning & Development,Building Control,Planning & Building,Employees,Indirect Employee Expenses,Agency Staff - Waged Posts,18/08/2022,452612,1691.35,Hays Specialist Recruitment
Planning & Development,Development Control,Planning & Building,Supplies & Services,Services,Legal Fees,04/08/2022,436581,1700,Sharpe Pritchard Llp
Environmental & Regulatory,Regulatory Services,Housing and Environmental Health ,Supplies & Services,Grants and subscriptions,Capital Grants,04/08/2022,451933,2074,Liftech Systems (Se) Ltd
Central Services to the Public,Management & Support Services,Premises & Asset Management,Third Party Payments,Other Establishments,Private Contractors,04/08/2022,451426,1750,Sonic Scaffolding 2000 Ltd
Cultural & Related,Open Spaces,Community and Leisure ,Premises related Expenditure,Repairs Alterations & Maintenance of Buildings,Estates premises costs - AMP,04/08/2022,443255,1756,Going Underground Ltd
Environmental & Regulatory,Street Cleansing (not chargeable to Highways),Environmental,Transport Related Expenditure,Direct Transport Costs,Repair Materials,04/08/2022,449666,1061.71,Tructyre Ats
Environmental & Regulatory,Waste management,Environmental,Transport Related Expenditure,Direct Transport Costs,Repair Materials,04/08/2022,449666,37.57,Tructyre Ats
Environmental & Regulatory,Waste management,Environmental,Transport Related Expenditure,Direct Transport Costs,Repair Materials,04/08/2022,449666,778.57,Tructyre Ats
Central Services,Corporate & Democratic Core,Corporate & Democratic,Supplies & Services,Services,Professional Fees,04/08/2022,449717,1905,Test Valley Removals
Cultural & Related,Recreation & Sport,Community and Leisure ,Premises related Expenditure,Grounds Maintenance Costs,Gm - Additional Works,11/08/2022,452388,1938.46,Stonbury Ltd
"Highways, Roads & Transport",Highways and roads - maintenance,Plan Pol & Transport,Premises related Expenditure,Repairs Alterations & Maintenance of Buildings,Highways Repairs,04/08/2022,443287,1943.88,Signway Supplies (Datchet Ltd)
Cultural & Related,Open Spaces,Community and Leisure ,Premises related Expenditure,Repairs Alterations & Maintenance of Buildings,Estates premises costs - AMP,04/08/2022,442444,1967.69,Stonbury Ltd
Cultural & Related,Recreation & Sport,Community and Leisure ,Third Party Payments,Private contractors,Main Contractor Costs,04/08/2022,437239,1978.63,Ava Recreation
Cultural & Related,Culture & Heritage,Community and Leisure ,Supplies & Services,Miscellaneous Expenses,Booking Of Acts,11/08/2022,449876,2379.46,G2 Vintage Genesis 1970-78
Housing Services,Homelessness,Housing and Environmental Health ,Supplies & Services,Grants & Subscriptions,Grants,18/08/2022,453291,2400,Brockenhurst Property Services
Central Services to the Public,Local Tax Collection,Revenues,Supplies & Services,"Printing, Stationery & General Office Expenses",Postage Costs,11/08/2022,451211,6.87,Royal Mail Group Ltd
Central Services to the Public,Local Tax Collection,Revenues,Supplies & Services,"Printing, Stationery & General Office Expenses",Postage Costs,11/08/2022,451211,1963.31,Royal Mail Group Ltd
Housing Services,Housing Benefits ,Revenues,Supplies & Services,"Printing, Stationery & General Office Expenses",Postage Costs,11/08/2022,451211,7.73,Royal Mail Group Ltd
Central Services to the Public,Local Tax Collection,Revenues,Supplies & Services,"Printing, Stationery & General Office Expenses",Postage Costs,11/08/2022,451211,7.73,Royal Mail Group Ltd
Environmental & Regulatory,Waste management,Environmental,Supplies & Services,"Printing, Stationery & General Office Expenses",Postage Costs,11/08/2022,451211,17.25,Royal Mail Group Ltd
Central Services to the Public,Management & Support Services,Premises & Asset Management,Third Party Payments,Other Establishments,Private Contractors,25/08/2022,454484,2017.16,Axis Fire And Security Services Ltd
Planning & Development,Building Control,Planning & Building,Employees,Indirect Employee Expenses,Agency Staff - Waged Posts,04/08/2022,449488,2202.98,Hays Specialist Recruitment
Central Services to the Public,Elections,Legal & Democratic,Supplies & Services,"Equipment, Furniture & Materials",Equipment Hire,04/08/2022,449689,2450.34,Wiltshire Council
External Trading Accounts,Business Parks,Premises & Asset Management,Supplies & Services,Services,Legal Fees,25/08/2022,452760,2250,Carter Jonas
Central Services to the Public,Management & Support Services,IT,Supplies & Services,"Equipment, Furniture & Materials",Purchase Equip + Materials,11/08/2022,452380,2250,Exampleit Ltd
"Highways, Roads & Transport",Parking Services,Plan Pol & Transport,Supplies & Services,Communications & Computing,Computer Software,04/08/2022,451268,1176,Flowbird Smart City Uk Ltd
"Highways, Roads & Transport",Parking Services,Plan Pol & Transport,Supplies & Services,Communications & Computing,Software Maintenance,04/08/2022,451268,1080,Flowbird Smart City Uk Ltd
Central Services to the Public,Management & Support Services,Premises & Asset Management,Employees,Indirect Employee Expenses,Advertising Of Vacancies,03/08/2022,443206,2277.6,Assemble Media Group Ltd
Central Services to the Public,Management & Support Services,HR Services,Third Party Payments,Other Local Authorities,Shared Service Contract Costs,11/08/2022,451253,2396.16,Mhr International Uk Ltd
Cultural & Related,Recreation & Sport,Community and Leisure ,Supplies & Services,Services,Legal Fees,04/08/2022,451629,2450,Enforcement Bailiffs Ltd
Cultural & Related,Open Spaces,Environmental,Supplies & Services,"Equipment, Furniture & Materials",Purchase Equip + Materials,25/08/2022,451160,2462,Fleet (Line Markers) Ltd
Central Services to the Public,Management & Support Services,Revenues,Supplies & Services,Miscellaneous Expenses,Security Services,25/08/2022,453674,198,Jade Security Services Ltd
"Highways, Roads & Transport",Parking Services,Plan Pol & Transport,Supplies & Services,Services,Professional Fees,25/08/2022,453674,2298.64,Jade Security Services Ltd
Central Services to the Public,Management & Support Services,Premises & Asset Management,Supplies & Services,Services,Professional Fees,18/08/2022,451399,2500,Cbre
Central Services to the Public,Management & Support Services,Revenues,Supplies & Services,Miscellaneous Expenses,Security Services,04/08/2022,448303,198,Jade Security Services Ltd
"Highways, Roads & Transport",Parking Services,Plan Pol & Transport,Supplies & Services,Services,Professional Fees,04/08/2022,448303,2302.11,Jade Security Services Ltd
Cultural & Related,Recreation & Sport,Community and Leisure ,Premises related Expenditure,Repairs Alterations & Maintenance of Buildings,Estates premises costs - AMP,18/08/2022,452697,2168,Mh Goals Ltd
Cultural & Related,Recreation & Sport,Community and Leisure ,Supplies & Services,"Equipment, Furniture & Materials",Purchase Equip + Materials,18/08/2022,452697,340,Mh Goals Ltd
Central Services to the Public,Management & Support Services,IT,Supplies & Services,"Equipment, Furniture & Materials",IT Supp and Serv AMP,25/08/2022,448203,2525,Exampleit Ltd
Central Services to the Public,Management & Support Services,Legal & Democratic,Supplies & Services,Communications & Computing,Computer Software,11/08/2022,442586,2556,Iken Business Ltd
Cultural & Related,Open Spaces,Community and Leisure ,Premises related Expenditure,Repairs Alterations & Maintenance of Buildings,Estates premises costs - AMP,25/08/2022,453434,2666.6,Going Underground Ltd
Central Services to the Public,Management & Support Services,Premises & Asset Management,Third Party Payments,Other Establishments,Contract Catering,11/08/2022,451643,2679.27,Edwards And Ward Ltd
External Trading Accounts,Property Investments,Premises & Asset Management,Supplies & Services,Services,Legal Fees,25/08/2022,449688,2800,Real Estate Strategies Ltd
Environmental & Regulatory,Regulatory Services,Housing and Environmental Health ,Supplies & Services,Grants and subscriptions,Capital Grants,18/08/2022,453322,3410,Liftech Systems (Se) Ltd
Central Services to the Public,Management & Support Services,Finance,Supplies & Services,Miscellaneous Expenses,Vehicle insurance claims,11/08/2022,452423,3462.5,Protector Insurance
Environmental & Regulatory,Regulatory Services,Housing and Environmental Health ,Supplies & Services,Grants and subscriptions,Capital Grants,11/08/2022,452784,3529.34,Bartram Building Maintenance Services
Planning & Development,Community Development,Planning Policy & Economic Development ,Transport Related Expenditure,Contract Hire and Operating Leases,Vehicles-Hired\Leased,04/08/2022,451175,3650,Amport & District Coaches Ltd
Environmental & Regulatory,Waste management,Environmental,Transport Related Expenditure,Direct Transport Costs,Tyres,25/08/2022,453342,1768.58,Tructyre Ats
Central Services to the Public,Management & Support Services,Environmental,Transport Related Expenditure,Direct Transport Costs,Repair Materials,25/08/2022,453342,1304,Tructyre Ats
"Highways, Roads & Transport",Parking Services,Plan Pol & Transport,Supplies & Services,Services,Professional Fees,25/08/2022,452709,1194.19,Park Now Limited
"Highways, Roads & Transport",Parking Services,Plan Pol & Transport,Transport Related Costs,Management Fee,Car Park charges,25/08/2022,452709,1960.66,Park Now Limited
Cultural & Related,Culture & Heritage,Community and Leisure ,Premises related Expenditure,Energy Costs,Electricity,11/08/2022,451919,2983.06,Sparsholt College Hampshire
Cultural & Related,Culture & Heritage,Community and Leisure ,Premises related Expenditure,Energy Costs,Gas,11/08/2022,451919,7.08,Sparsholt College Hampshire
Cultural & Related,Culture & Heritage,Community and Leisure ,Premises related Expenditure,Water Services,Water And Sewerage Charges,11/08/2022,451919,254.34,Sparsholt College Hampshire
Central Services to the Public,Management & Support Services,Premises & Asset Management,Premises related Expenditure,Repairs Alterations & Maintenance of Buildings,Estates premises costs - AMP,25/08/2022,454477,3260,Bournemouth White Lining Ltd
Central Services,Corporate & Democratic Core,Corporate & Democratic,Supplies & Services,"Equipment, Furniture & Materials",IT Supp and Serv AMP,18/08/2022,453436,3285.98,Advanced Business Software And Solutions Ltd
Central Services to the Public,Management & Support Services,IT,Supplies & Services,"Equipment, Furniture & Materials",IT Supp and Serv AMP,11/08/2022,451667,3300,Optm
Central Services to the Public,Management & Support Services,IT,Supplies & Services,"Equipment, Furniture & Materials",IT Supp and Serv AMP,11/08/2022,452374,3300,Optm
Central Services to the Public,Management & Support Services,IT,Supplies & Services,Communications & Computing,Communication Links,11/08/2022,451905,3364.92,Virgin Media Payments Ltd
Environmental & Regulatory,Regulatory Services,Housing and Environmental Health ,Supplies & Services,Grants and subscriptions,Capital Grants,04/08/2022,451930,4131.04,Acer Renovations Ltd
Cultural & Related,Culture & Heritage,Community and Leisure ,Third Party Payments,Private contractors,Main Contractor Costs,04/08/2022,451206,3500,Hurstbourne Forge Ltd
Cultural & Related,Culture & Heritage,Community and Leisure ,Premises related Expenditure,Energy Costs,Electricity,11/08/2022,451918,3288.31,Sparsholt College Hampshire
Cultural & Related,Culture & Heritage,Community and Leisure ,Premises related Expenditure,Energy Costs,Gas,11/08/2022,451918,8.74,Sparsholt College Hampshire
Cultural & Related,Culture & Heritage,Community and Leisure ,Premises related Expenditure,Water Services,Water And Sewerage Charges,11/08/2022,451918,254.34,Sparsholt College Hampshire
Environmental & Regulatory,Waste management,Environmental,Supplies & Services,"Equipment, Furniture & Materials",Purchase Equip + Materials,25/08/2022,453427,3543,Storm Environmental Ltd
Cultural & Related,Open Spaces,Community and Leisure ,Supplies & Services,Services,Training Courses,04/08/2022,451923,3600,Tree Life Ac Ltd
Central Services to the Public,Management & Support Services,Premises & Asset Management,Third Party Payments,Other Establishments,Private Contractors,18/08/2022,437247,3600.79,Corrigenda Ltd
External Trading Accounts,Business Parks,Premises & Asset Management,Supplies & Services,Services,Professional Fees,04/08/2022,437223,3625,Smith Price Llp
Environmental & Regulatory,Street Cleansing (not chargeable to Highways),Environmental,Employees,Indirect Employee Expenses,Agency Staff - Waged Posts,25/08/2022,453463,543.53,24-7 Staffing
Environmental & Regulatory,Waste management,Environmental,Employees,Indirect Employee Expenses,Agency Staff - Waged Posts,25/08/2022,453463,1692.57,24-7 Staffing
Environmental & Regulatory,Waste management,Environmental,Employees,Indirect Employee Expenses,Agency Staff - Waged Posts,25/08/2022,453463,1439.62,24-7 Staffing
Environmental & Regulatory,Regulatory Services,Housing and Environmental Health ,Supplies & Services,Grants and subscriptions,Capital Grants,04/08/2022,451934,4460,A & E Builders
External Trading Accounts,Business Parks,Premises & Asset Management,Premises related Expenditure,Repairs Alterations & Maintenance of Buildings,Planned Maintenance - Non Est,18/08/2022,452968,716,Axis Fire And Security Services Ltd
External Trading Accounts,Property Investments,Premises & Asset Management,Premises related Expenditure,Repairs Alterations & Maintenance of Buildings,Planned Maintenance - Non Est,18/08/2022,452968,55,Axis Fire And Security Services Ltd
External Trading Accounts,Economic Development,Premises & Asset Management,Premises related Expenditure,Repairs Alterations & Maintenance of Buildings,Planned Maintenance - Non Est,18/08/2022,452968,110,Axis Fire And Security Services Ltd
External Trading Accounts,Business Parks,Premises & Asset Management,Premises related Expenditure,Repairs Alterations & Maintenance of Buildings,Planned Maintenance - Non Est,18/08/2022,452968,495,Axis Fire And Security Services Ltd
Cultural & Related,Tourism,Planning Policy & Economic Development ,Premises related Expenditure,Repairs Alterations & Maintenance of Buildings,Planned Maintenance - Non Est,18/08/2022,452968,110,Axis Fire And Security Services Ltd
Cultural & Related,Culture & Heritage,Premises & Asset Management,Premises related Expenditure,Repairs Alterations & Maintenance of Buildings,Planned Maintenance - Non Est,18/08/2022,452968,110,Axis Fire And Security Services Ltd
Cultural & Related,Culture & Heritage,Premises & Asset Management,Premises related Expenditure,Repairs Alterations & Maintenance of Buildings,Planned Maintenance - Non Est,18/08/2022,452968,110,Axis Fire And Security Services Ltd
Cultural & Related,Culture & Heritage,Premises & Asset Management,Premises related Expenditure,Repairs Alterations & Maintenance of Buildings,Planned Maintenance - Non Est,18/08/2022,452968,110,Axis Fire And Security Services Ltd
Cultural & Related,Culture & Heritage,Premises & Asset Management,Premises related Expenditure,Repairs Alterations & Maintenance of Buildings,Planned Maintenance - Non Est,18/08/2022,452968,55,Axis Fire And Security Services Ltd
Cultural & Related,Culture & Heritage,Premises & Asset Management,Premises related Expenditure,Repairs Alterations & Maintenance of Buildings,Planned Maintenance - Non Est,18/08/2022,452968,55,Axis Fire And Security Services Ltd
Cultural & Related,Culture & Heritage,Premises & Asset Management,Premises related Expenditure,Grounds Maintenance Costs,Grounds Maintenance Contracts,18/08/2022,452968,110,Axis Fire And Security Services Ltd
Cultural & Related,Culture & Heritage,Premises & Asset Management,Premises related Expenditure,Repairs Alterations & Maintenance of Buildings,Planned Maintenance - Non Est,18/08/2022,452968,472,Axis Fire And Security Services Ltd
Central Services to the Public,Management & Support Services,Premises & Asset Management,Premises related Expenditure,Repairs Alterations & Maintenance of Buildings,Planned Maintenance - Non Est,18/08/2022,452968,110,Axis Fire And Security Services Ltd
Central Services to the Public,Management & Support Services,Premises & Asset Management,Premises related Expenditure,Repairs Alterations & Maintenance of Buildings,Planned Maintenance - Non Est,18/08/2022,452968,110,Axis Fire And Security Services Ltd
Central Services to the Public,Management & Support Services,Premises & Asset Management,Premises related Expenditure,Repairs Alterations & Maintenance of Buildings,Planned Maintenance - Non Est,18/08/2022,452968,110,Axis Fire And Security Services Ltd
Central Services to the Public,Management & Support Services,Premises & Asset Management,Premises related Expenditure,Repairs Alterations & Maintenance of Buildings,Planned Maintenance - Non Est,18/08/2022,452968,110,Axis Fire And Security Services Ltd
Central Services to the Public,Management & Support Services,Premises & Asset Management,Premises related Expenditure,Repairs Alterations & Maintenance of Buildings,Planned Maintenance - Non Est,18/08/2022,452968,55,Axis Fire And Security Services Ltd
Cultural & Related,Recreation & Sport,Community and Leisure ,Premises related Expenditure,Repairs Alterations & Maintenance of Buildings,Planned Maintenance - Non Est,18/08/2022,452968,110,Axis Fire And Security Services Ltd
Cultural & Related,Recreation & Sport,Community and Leisure ,Premises related Expenditure,Repairs Alterations & Maintenance of Buildings,Planned Maintenance - Non Est,18/08/2022,452968,110,Axis Fire And Security Services Ltd
Cultural & Related,Recreation & Sport,Community and Leisure ,Premises related Expenditure,Repairs Alterations & Maintenance of Buildings,Planned Maintenance - Non Est,18/08/2022,452968,55,Axis Fire And Security Services Ltd
Cultural & Related,Recreation & Sport,Community and Leisure ,Premises related Expenditure,Repairs Alterations & Maintenance of Buildings,Planned Maintenance - Non Est,18/08/2022,452968,55,Axis Fire And Security Services Ltd
Cultural & Related,Recreation & Sport,Community and Leisure ,Premises related Expenditure,Repairs Alterations & Maintenance of Buildings,Planned Maintenance - Non Est,18/08/2022,452968,110,Axis Fire And Security Services Ltd
Cultural & Related,Recreation & Sport,Community and Leisure ,Premises related Expenditure,Repairs Alterations & Maintenance of Buildings,Planned Maintenance - Non Est,18/08/2022,452968,110,Axis Fire And Security Services Ltd
Cultural & Related,Culture & Heritage,Community and Leisure ,Premises related Expenditure,Repairs Alterations & Maintenance of Buildings,Planned Maintenance - Non Est,18/08/2022,452968,110,Axis Fire And Security Services Ltd
"Highways, Roads & Transport",Parking Services,Plan Pol & Transport,Premises related Expenditure,Repairs Alterations & Maintenance of Buildings,Planned Maintenance - Non Est,18/08/2022,452968,55,Axis Fire And Security Services Ltd
Housing Services,Homelessness,Housing and Environmental Health ,Supplies & Services,Grants & Subscriptions,Grants,25/08/2022,454678,4471.86,Two Saints Housing Association Ltd
Cultural & Related,Open Spaces,Community and Leisure ,Premises related Expenditure,Grounds Maintenance Costs,Gm - Additional Works,04/08/2022,451913,3870,Strettons Spreading Svcs Ltd
Environmental & Regulatory,Street Cleansing (not chargeable to Highways),Environmental,Employees,Indirect Employee Expenses,Agency Staff - Waged Posts,11/08/2022,451669,508.1,24-7 Staffing
Environmental & Regulatory,Waste management,Environmental,Employees,Indirect Employee Expenses,Agency Staff - Waged Posts,11/08/2022,451669,2171.65,24-7 Staffing
Environmental & Regulatory,Waste management,Environmental,Employees,Indirect Employee Expenses,Agency Staff - Waged Posts,11/08/2022,451669,1252.58,24-7 Staffing
External Trading Accounts,Business Parks,Premises & Asset Management,Premises related Expenditure,Repairs Alterations & Maintenance of Buildings,Planned Maintenance - Non Est,18/08/2022,453651,3200,C.S Todd & Associates Ltd
"Highways, Roads & Transport",Parking Services,Plan Pol & Transport,Premises related Expenditure,Repairs Alterations & Maintenance of Buildings,Planned Maintenance - Non Est,18/08/2022,453651,750,C.S Todd & Associates Ltd
External Trading Accounts,Economic Development,Premises & Asset Management,Supplies & Services,Miscellaneous Expenses,Waste Collection,04/08/2022,451266,3998.45,Grist Environmental
Cultural & Related,Culture & Heritage,Community and Leisure ,Supplies & Services,Miscellaneous Expenses,Other Miscellaneous Costs,04/08/2022,451184,4000,Morris Singer Art Foundry Ltd
Environmental & Regulatory,Regulatory Services,Housing and Environmental Health ,Employees,Indirect Employee Expenses,Temporary Staff,18/08/2022,452413,4004,Vivid Resourcing
Planning & Development,Development Control,Planning & Building,Supplies & Services,Services,Legal Fees,04/08/2022,443208,4025,Cornerstone Barristers
External Trading Accounts,Economic Development,Premises & Asset Management,Supplies & Services,Miscellaneous Expenses,Waste Collection,04/08/2022,451265,4132.55,Grist Environmental
Environmental & Regulatory,Street Cleansing (not chargeable to Highways),Environmental,Employees,Indirect Employee Expenses,Agency Staff - Waged Posts,18/08/2022,452713,554.39,24-7 Staffing
Environmental & Regulatory,Waste management,Environmental,Employees,Indirect Employee Expenses,Agency Staff - Waged Posts,18/08/2022,452713,2449.1,24-7 Staffing
Environmental & Regulatory,Waste management,Environmental,Employees,Indirect Employee Expenses,Agency Staff - Waged Posts,18/08/2022,452713,1284.75,24-7 Staffing
"Highways, Roads & Transport",Parking Services,Plan Pol & Transport,Supplies & Services,"Equipment, Furniture & Materials",Purchase Equip + Materials,04/08/2022,451650,4330,Ina Parc Ltd
Environmental & Regulatory,Regulatory Services,Housing and Environmental Health ,Supplies & Services,Grants and subscriptions,Capital Grants,25/08/2022,454627,5201.3,Bartram Building Maintenance Services
Cultural & Related,Open Spaces,Community and Leisure ,Premises related Expenditure,Repairs Alterations & Maintenance of Buildings,Estates premises costs - AMP,04/08/2022,443252,4388,Going Underground Ltd
Cultural & Related,Open Spaces,Community and Leisure ,Supplies & Services,"Equipment, Furniture & Materials",Purchase Equip + Materials,04/08/2022,432385,4472.7,Downs View Nurseries Ltd
Central Services,Corporate & Democratic Core,Corporate & Democratic,Supplies & Services,Services,Project Consultancy - Policy,25/08/2022,454495,4585,Studio Four Architects Ltd
Central Services,Corporate & Democratic Core,Corporate & Democratic,Supplies & Services,Services,Project Consultancy - Policy,04/08/2022,451179,4675,New Masterplanning
Planning & Development,Development Control,Planning & Building,Supplies & Services,Services,Legal Fees,04/08/2022,436582,4700,Sharpe Pritchard Llp
Environmental & Regulatory,Regulatory Services,Housing and Environmental Health ,Supplies & Services,Grants and subscriptions,Capital Grants,04/08/2022,451932,5959.88,Acer Renovations Ltd
Central Services to the Public,Management & Support Services,Environmental,Transport Related Expenditure,Direct Transport Costs,Diesel,04/08/2022,449381,5014.09,Wp Group Limited
Environmental & Regulatory,Street Cleansing (not chargeable to Highways),Environmental,Employees,Indirect Employee Expenses,Agency Staff - Waged Posts,04/08/2022,451137,552.82,24-7 Staffing
Environmental & Regulatory,Waste management,Environmental,Employees,Indirect Employee Expenses,Agency Staff - Waged Posts,04/08/2022,451137,2299.62,24-7 Staffing
Environmental & Regulatory,Waste management,Environmental,Employees,Indirect Employee Expenses,Agency Staff - Waged Posts,04/08/2022,451137,2298.75,24-7 Staffing
Cultural & Related,Recreation & Sport,Community and Leisure ,Premises related Expenditure,Repairs Alterations & Maintenance of Buildings,Estates premises costs - AMP,04/08/2022,443254,5218.3,Going Underground Ltd
Central Services to the Public,Management & Support Services,Finance,Supplies & Services,"Printing, Stationery & General Office Expenses",Postage Costs,18/08/2022,452376,6502.09,Pitney Bowes Limited
External Trading Accounts,Business Parks,Premises & Asset Management,Supplies & Services,Services,Legal Fees,25/08/2022,454284,5675,Enforcement Bailiffs Ltd
External Trading Accounts,Economic Development,Premises & Asset Management,Premises related Expenditure,Cleaning and domestic supplies,Contract Cleaning - Non Estates,25/08/2022,454475,708.33,Hi-Spec Facilities Services Plc
External Trading Accounts,Business Parks,Premises & Asset Management,Premises related Expenditure,Cleaning and domestic supplies,Contract Cleaning - Non Estates,25/08/2022,454475,215.01,Hi-Spec Facilities Services Plc
Central Services to the Public,Management & Support Services,Premises & Asset Management,Premises related Expenditure,Cleaning and domestic supplies,Contract Cleaning - Non Estates,25/08/2022,454475,224.67,Hi-Spec Facilities Services Plc
Environmental & Regulatory,Regulatory Services,Premises & Asset Management,Premises related Expenditure,Cleaning and domestic supplies,Contract Cleaning - Non Estates,25/08/2022,454475,2006.74,Hi-Spec Facilities Services Plc
Cultural & Related,Recreation & Sport,Community and Leisure ,Premises related Expenditure,Cleaning and domestic supplies,Contract Cleaning - Non Estates,25/08/2022,454475,281.06,Hi-Spec Facilities Services Plc
Cultural & Related,Recreation & Sport,Community and Leisure ,Premises related Expenditure,Cleaning and domestic supplies,Contract Cleaning - Non Estates,25/08/2022,454475,752.53,Hi-Spec Facilities Services Plc
Cultural & Related,Recreation & Sport,Community and Leisure ,Premises related Expenditure,Cleaning and domestic supplies,Contract Cleaning - Non Estates,25/08/2022,454475,456.75,Hi-Spec Facilities Services Plc
Cultural & Related,Recreation & Sport,Community and Leisure ,Premises related Expenditure,Cleaning and domestic supplies,Contract Cleaning - Non Estates,25/08/2022,454475,456.75,Hi-Spec Facilities Services Plc
Environmental & Regulatory,"Cemetery, Cremation and Mortuary Services",Community and Leisure ,Premises related Expenditure,Cleaning and domestic supplies,Contract Cleaning - Non Estates,25/08/2022,454475,35.83,Hi-Spec Facilities Services Plc
Cultural & Related,Open Spaces,Community and Leisure ,Premises related Expenditure,Cleaning and domestic supplies,Contract Cleaning - Non Estates,25/08/2022,454475,752.53,Hi-Spec Facilities Services Plc
"Highways, Roads & Transport",Parking Services,Plan Pol & Transport,Premises related Expenditure,Cleaning and domestic supplies,Contract Cleaning - Non Estates,25/08/2022,454475,35.83,Hi-Spec Facilities Services Plc
Central Services,Corporate & Democratic Core,Corporate & Democratic,Supplies & Services,Services,Professional Fees,18/08/2022,452990,6000,Hurst Warne & Partners Surveyors Ltd
Central Services to the Public,Management & Support Services,Environmental,Transport Related Expenditure,Direct Transport Costs,Diesel,11/08/2022,452381,6165.62,Wp Group Limited
Environmental & Regulatory,Waste management,Environmental,Supplies & Services,"Equipment, Furniture & Materials",Purchase Equip + Materials,18/08/2022,452379,6200,J & H M Dickson Ltd
Central Services to the Public,Management & Support Services,Environmental,Transport Related Expenditure,Direct Transport Costs,Diesel,04/08/2022,449245,6291.2,Wp Group Limited
Cultural & Related,Open Spaces,Environmental,Supplies & Services,Communications & Computing,Computer Software,25/08/2022,453455,6306,R & A Information Systems Ltd
Cultural & Related,Open Spaces,Community and Leisure ,Supplies & Services,Communications & Computing,Software Maintenance,11/08/2022,451653,6325,R & A Information Systems Ltd
Cultural & Related,Open Spaces,Community and Leisure ,Supplies & Services,"Equipment, Furniture & Materials",Purchase Equip + Materials,04/08/2022,432384,6583.59,Downs View Nurseries Ltd
Central Services to the Public,Management & Support Services,IT,Supplies & Services,"Equipment, Furniture & Materials",Maintenance Equip + Materials,04/08/2022,449375,7100,Dssl Group Ltd
Central Services to the Public,Local Land Charges,Legal & Democratic,Supplies & Services,Miscellaneous Expenses,Land Charges Fees,11/08/2022,451228,7602,Hampshire County Council
Central Services to the Public,Management & Support Services,Environmental,Transport Related Expenditure,Direct Transport Costs,Diesel,18/08/2022,452757,9067.24,Wp Group Limited
Central Services,Corporate & Democratic Core,Corporate & Democratic,Supplies & Services,Communications & Computing,Software Maintenance,04/08/2022,451174,10000,Web Labs Ltd
"Highways, Roads & Transport",Parking Services,Plan Pol & Transport,Premises related Expenditure,Repairs Alterations & Maintenance of Buildings,Car Park General Repairs,04/08/2022,451178,10311.45,Irvine Grenson Ltd
Central Services to the Public,Local Land Charges,Legal & Democratic,Supplies & Services,Miscellaneous Expenses,Land Charges Fees,11/08/2022,451229,10878,Hampshire County Council
External Trading Accounts,Business Parks,Premises & Asset Management,Premises related Expenditure,Energy Costs,Electricity,25/08/2022,453005,125.24,Hampshire County Council
Cultural & Related,Recreation & Sport,Premises & Asset Management,Premises related Expenditure,Energy Costs,Electricity,25/08/2022,453005,118.95,Hampshire County Council
Cultural & Related,Open Spaces,Community and Leisure ,Premises related Expenditure,Energy Costs,Electricity,25/08/2022,453005,630.84,Hampshire County Council
Cultural & Related,Culture & Heritage,Community and Leisure ,Premises related Expenditure,Energy Costs,Electricity,25/08/2022,453005,143.22,Hampshire County Council
"Highways, Roads & Transport",Highways and roads - maintenance,Plan Pol & Transport,Premises related Expenditure,Energy Costs,Electricity,25/08/2022,453005,178.6,Hampshire County Council
"Highways, Roads & Transport",Parking Services,Plan Pol & Transport,Premises related Expenditure,Energy Costs,Electricity,25/08/2022,453005,9791.63,Hampshire County Council
External Trading Accounts,Economic Development,Premises & Asset Management,Premises related Expenditure,Cleaning and domestic supplies,Contract Cleaning - Non Estates,18/08/2022,452982,11583.31,Red Support Services
Central Services to the Public,Management & Support Services,IT,Supplies & Services,"Equipment, Furniture & Materials",IT Supp and Serv AMP,25/08/2022,451261,11775,Exampleit Ltd
Environmental & Regulatory,Waste management,Environmental,Supplies & Services,"Equipment, Furniture & Materials",Purchase Equip + Materials,18/08/2022,452715,12000,Mgb Plastics Ltd
Environmental & Regulatory,Waste management,Environmental,Supplies & Services,"Equipment, Furniture & Materials",Purchase Equip + Materials,18/08/2022,452993,12000,Mgb Plastics Ltd
Environmental & Regulatory,Waste management,Environmental,Supplies & Services,"Equipment, Furniture & Materials",Purchase Equip + Materials,25/08/2022,453428,12000,Mgb Plastics Ltd
Central Services to the Public,Management & Support Services,Environmental,Transport Related Expenditure,Direct Transport Costs,Diesel,04/08/2022,451202,12118.76,Wp Group Limited
External Trading Accounts,Business Parks,Premises & Asset Management,Premises related Expenditure,Repairs Alterations & Maintenance of Buildings,Building Maint - Non Estates,25/08/2022,454500,12132.59,Wicksteed Leisure Ltd
Cultural & Related,Recreation & Sport,Community and Leisure ,Third Party Payments,Private contractors,Main Contractor Costs,25/08/2022,453004,12980.94,Ava Recreation
Central Services to the Public,Management & Support Services,Premises & Asset Management,Third Party Payments,Other Establishments,Private Contractors,04/08/2022,451648,13733.28,Purbeck Civil Engineering Limited
Central Services to the Public,Management & Support Services,IT,Supplies & Services,"Equipment, Furniture & Materials",IT Supp and Serv AMP,25/08/2022,451262,15700,Exampleit Ltd
Central Services to the Public,Management & Support Services,Environmental,Transport Related Expenditure,Direct Transport Costs,Diesel,11/08/2022,429375,19587.38,Wp Group Limited
External Trading Accounts,Economic Development,Premises & Asset Management,Supplies & Services,Services,Professional Fees,04/08/2022,447212,22500,Jll
Central Services,Corporate & Democratic Core,Corporate & Democratic,Supplies & Services,Services,Professional Fees,04/08/2022,451159,23688,Cadence Innova Ltd
External Trading Accounts,Economic Development,Premises & Asset Management,Third Party Payments,Other Establishments,Other Contractors,18/08/2022,452983,24208.71,Red Support Services
Central Services to the Public,Management & Support Services,Premises & Asset Management,Supplies & Services,Services,Professional Fees,25/08/2022,454465,27000,Vail Williams Llp
"Highways, Roads & Transport",Parking Services,Plan Pol & Transport,Transport Related Costs,Management Fee,Car Park charges,04/08/2022,451150,33607,Asda
Central Services,Corporate & Democratic Core,Corporate & Democratic,Supplies & Services,Services,Professional Fees,25/08/2022,449884,67194,New Masterplanning
External Trading Accounts,Property Investments,Estates and Economic Development ,Third Party Payments,Private contractors,Main Contractor Costs,25/08/2022,454502,77978.53,Kier Property Developments Ltd.
